Workbook

Sheet 3.09 (hidden)
E1: ООО "АБК-Пэймент"
E2: МЕНЮ ДОПОЛНИТЕЛЬНОГО ПИТАНИЯ (ОБЕД)
E3: для учащихся с 7 лет до 11 лет г.Нижнекамск
E4: на осеене-зимний период
A5: 1 неделя
B6: 1-ый день (понедельник)
A7: № Сборника рецептур | B7: Наименование блюд | F7: выход | G7: стоимость | H7: белки | I7: жиры | J7: углеводы | K7: ККАЛ | L7: В1 | M7: С | N7: А | O7: Е | P7: Са | Q7: Р | R7: Мg | S7: Fe
C8: ПЕРВОЕ БЛЮДО и МУЧНОЕ ИЗДЕЛИЕ
A9: 88/2017 | B9: Щи из свежей капусты с картофелем, со сметаной, куриными фрикадельками | F9: 250/15/30 | G9: 13.37 | H9: 1.80 | I9: 4.80 | J9: 6.00 | K9: 73.00 | L9: 0.01 | M9: 8.04 | N9: 23.40 | O9: 0.15 | P9: 30.40 | Q9: 26.20 | R9: 10.40 | S9: 0.36
A10: 4342/2017 | B10: Булочка "Молочная" | F10: 50 | G10: 1.93 | H10: 4.70 | I10: 1.10 | J10: 26.00 | K10: 135.00 | L10: 0.06 | M10: 0.00 | N10: 3.60 | O10: 0.62 | P10: 29.19 | Q10: 47.65 | R10: 8.32 | S10: 0.46
B11: ИЛИ | H11: =SUM(H9:H10) -> 6.50 | I11: =SUM(I9:I10) -> 5.90 | J11: 32.00 | K11: 208.00 | L11: 0.07 | M11: 8.04 | N11: 27.00 | O11: 0.77 | P11: 59.59 | Q11: 73.85 | R11: 18.72 | S11: 0.82
B12: ХОЛОДНАЯ ЗАКУСКА И ВТОРОЕ БЛЮДО
A13: 15/2017 | B13: Сыр (порциями) | F13: 15 | G13: 5.44 | H13: 3.95 | I13: 3.99 | J13: 0.00 | K13: 53.00 | L13: 0.01 | M13: 0.11 | N13: 0.00 | O13: 0.06 | P13: 150.00 | Q13: 90.00 | R13: 8.25 | S13: 0.11
A14: № 181/2017 | B14: Каша манная молочная с маслом сливочным на полив | F14: 150/5 | G14: 5.70 | H14: 5.61 | I14: 5.81 | J14: 28.53 | K14: 189.00 | L14: 0.07 | M14: 0.25 | N14: 36.30 | O14: 0.63 | P14: 140.56 | Q14: 117.50 | R14: 20.60 | S14: 0.47
B15: НАПИТОК | H15: =SUM(H14:H14) -> 5.61 | I15: 5.81 | J15: 28.53 | K15: 189.00 | L15: 0.07 | M15: 0.25 | N15: 36.30 | O15: 0.63 | P15: 140.56 | Q15: 117.50 | R15: 20.60 | S15: 0.47
A16: № 376/2017 | B16: Чай черный с сахаром | F16: 200/15 | G16: 0.79 | H16: 0.46 | I16: 0.02 | J16: 16.25 | K16: 67.00 | L16: 0.00 | M16: 0.00 | N16: 0.00 | O16: 0.00 | P16: 0.40 | Q16: 0.00 | R16: 0.00 | S16: 0.40
H17: =SUM(H16) -> 0.46 | I17: 0.02 | J17: 16.25 | K17: 67.00 | L17: 0.00 | M17: 0.00 | N17: 0.00 | O17: 0.00 | P17: 0.40 | Q17: 0.00 | R17: 0.00 | S17: 0.40
A18: ТТК, акт 15 | B18: Хлеб сельский / хлеб белый | F18: 20/20 | G18: 1.92 | H18: 2.90 | I18: 0.80 | J18: 17.00 | K18: 90.00 | L18: 0.04 | O18: 0.40 | P18: 8.70 | Q18: 34.10 | R18: 9.10 | S18: 0.52
H19: =H18 -> 2.90 | I19: =I18 -> 0.80 | J19: 17.00 | K19: 90.00 | L19: 0.04 | M19: 0.00 | N19: 0.00 | O19: 0.40 | P19: 8.70 | Q19: 34.10 | R19: 9.10 | S19: 0.52
F21: Итого- | G21: =((G9+G10+G16+G18)+(G14+G13+G16+G18))/2 -> 15.93 | H21: 11.39 | I21: 8.67 | J21: 63.52 | K21: 382.00 | L21: 0.12 | M21: 4.20 | N21: 31.65 | O21: 1.13 | P21: 184.18 | Q21: 174.78 | R21: 32.89 | S21: 1.62
B22: 2-ой день (вторник)
C24: ПЕРВОЕ БЛЮДО и КОНДИТЕРСКОЕ ИЗДЕЛИЕ
A25: №108,109/2017 | B25: Суп картофельный с клецками с мясными фрикадельками | F25: 250/22 | G25: 13.00 | H25: 2.84 | I25: 3.67 | J25: 15.03 | K25: 115.20 | L25: 0.08 | M25: 4.60 | N25: 16.84 | O25: 1.29 | P25: 26.72 | Q25: 57.70 | R25: 20.28 | S25: 0.93
A26: ТТК | B26: Печенье | F26: 40 | G26: 3.31 | H26: 1.26 | I26: 1.48 | J26: 34.76 | K26: 160.00 | L26: 0.01 | N26: 0.90 | O26: 0.32 | P26: 7.20 | Q26: 16.20 | R26: 4.50 | S26: 0.68
B27: ИЛИ | H27: =SUM(H25:H26) -> 4.10 | I27: =SUM(I25:I26) -> 5.15 | J27: 49.79 | K27: 275.20 | L27: 0.09 | M27: 4.60 | N27: 17.74 | O27: 1.61 | P27: 33.92 | Q27: 73.90 | R27: 24.78 | S27: 1.61
B28: ВТОРОЕ БЛЮДО И КОНДИТЕРСКОЕ ИЗДЕЛИЕ
A29: 174/2017 | B29: Каша рисовая молочная с маслом сливочным на полив | F29: 150/5 | G29: 6.65 | H29: 4.62 | I29: 5.81 | J29: 29.65 | K29: 189.00 | L29: 0.06 | M29: 0.25 | N29: 36.40 | O29: 0.25 | P29: 137.00 | Q29: 137.00 | R29: 30.50 | S29: 0.47
A30: ТТК | B30: Печенье | F30: 40 | G30: 3.31 | H30: 1.26 | I30: 1.48 | J30: 34.76 | K30: 160.00 | L30: 0.01 | N30: 0.90 | O30: 0.32 | P30: 7.20 | Q30: 16.20 | R30: 4.50 | S30: 0.68
H31: =SUM(H29:H30) -> 5.88 | I31: =SUM(I29:I30) -> 7.29 | J31: 64.41 | K31: 349.00 | L31: 0.07 | M31: 0.25 | N31: 37.30 | O31: 0.57 | P31: 144.20 | Q31: 153.20 | R31: 35.00 | S31: 1.15
C32: НАПИТОК
A33: 349/2017 | B33: Напиток из сухофруктов | F33: 200 | G33: 2.28 | H33: 0.66 | I33: 0.09 | J33: 32.01 | K33: 132.80 | L33: 0.02 | M33: 0.72 | O33: 0.51 | P33: 32.48 | Q33: 23.44 | R33: 17.46 | S33: 0.69
H34: =H33 -> 0.66 | I34: =I33 -> 0.09 | J34: 32.01 | K34: 132.80 | L34: 0.02 | M34: 0.72 | N34: 0.00 | O34: 0.51 | P34: 32.48 | Q34: 23.44 | R34: 17.46 | S34: 0.69
A35: ТТК, акт 15 | B35: Хлеб сельский / хлеб белый | F35: 20/20 | G35: 1.92 | H35: 2.90 | I35: 0.80 | J35: 17.00 | K35: 90.00 | L35: 0.04 | O35: 0.40 | P35: 8.70 | Q35: 34.10 | R35: 9.10 | S35: 0.52
H36: =H35 -> 2.90 | I36: =I35 -> 0.80 | J36: 17.00 | K36: 90.00 | L36: 0.04 | M36: 0.00 | N36: 0.00 | O36: 0.40 | P36: 8.70 | Q36: 34.10 | R36: 9.10 | S36: 0.52
F38: Итого- | G38: =((G25+G26+G33+G35)+(G29+G30+G31+G33+G35))/2 -> 17.34 | H38: =((H25+H26+H33+H35)+(H29+H30+H31+H33+H35))/2 -> 11.49 | I38: 10.76 | J38: 138.32 | K38: 709.40 | L38: 0.18 | M38: 3.27 | N38: 46.17 | O38: 2.28 | P38: 202.34 | Q38: 247.69 | R38: 73.95 | S38: 3.17
B39: 3-ий день (среда)
C41: ПЕРВОЕ БЛЮДО и КОНДИТЕРСКОЕ ИЗДЕЛИЕ
A42: №119/2017 | B42: Суп гороховый с гренками | F42: 250/10 | G42: 3.40 | H42: 5.68 | I42: 6.50 | J42: 22.80 | K42: 172.00 | L42: 0.13 | M42: 1.00 | N42: 11.80 | O42: 0.94 | P42: 66.78 | Q42: 268.90 | R42: 39.40 | S42: 1.80
A43: ТТК | B43: Вафли | F43: 50 | G43: 4.48 | H43: 2.23 | I43: 2.94 | J43: 22.30 | K43: 125.00 | L43: 0.02 | N43: 3.00 | O43: 1.05 | P43: 8.70 | Q43: 27.00 | R43: 6.00 | S43: 0.63
B44: ИЛИ | H44: =SUM(H42:H43) -> 7.91 | I44: =SUM(I42:I43) -> 9.44 | J44: 45.10 | K44: 297.00 | L44: 0.15 | M44: 1.00 | N44: 14.80 | O44: 1.99 | P44: 75.48 | Q44: 295.90 | R44: 45.40 | S44: 2.43
B45: ВТОРОЕ БЛЮДО
A46: 219/2017 | B46: Сырники из творога | F46: 40 | G46: 7.93 | H46: 3.95 | I46: 3.99 | J46: 0.00 | K46: 53.00 | L46: 0.01 | M46: 0.11 | N46: 0.00 | O46: 0.06 | P46: 150.00 | Q46: 90.00 | R46: 8.25 | S46: 0.11
A47: 173/2017 | B47: Каша молочная полбяная с маслом сливочным на полив | F47: 150/5 | G47: 6.14 | H47: 6.28 | I47: 7.55 | J47: 25.60 | K47: 195.00 | L47: 0.15 | M47: 0.25 | N47: 37.70 | O47: 0.68 | P47: 156.02 | Q47: 193.50 | R47: 193.5 | S47: 55.7
H48: =SUM(H46:H47) -> 10.23 | I48: =SUM(I46:I47) -> 11.54 | J48: 25.60 | K48: 248.00 | L48: 0.16 | M48: 0.36 | N48: 37.70 | O48: 0.74 | P48: 306.02 | Q48: 283.50 | R48: 201.75 | S48: 55.81
C49: НАПИТКИ
A50: № 376/2017 | B50: Чай черный с сахаром | F50: 200/15 | G50: 0.79 | H50: 0.46 | I50: 0.02 | J50: 16.25 | K50: 67.00 | L50: 0.00 | M50: 0.00 | N50: 0.00 | O50: 0.00 | P50: 0.40 | Q50: 0.00 | R50: 0.00 | S50: 0.40
H51: =SUM(H50) -> 0.46 | I51: =SUM(I50) -> 0.02 | J51: =SUM(J50) -> 16.25 | K51: =SUM(K50) -> 67.00 | P51: =SUM(P50) -> 0.40 | S51: =SUM(S50) -> 0.40
A52: ТТК, акт 15 | B52: Хлеб сельский / хлеб белый | F52: 20/20 | G52: 1.92 | H52: 2.90 | I52: 0.80 | J52: 17.00 | K52: 90.00 | L52: 0.04 | O52: 0.40 | P52: 8.20 | Q52: 34.10 | R52: 9.10 | S52: 0.52
H53: =SUM(H52) -> 2.90 | I53: =SUM(I52) -> 0.80 | J53: =SUM(J52) -> 17.00 | K53: =SUM(K52) -> 90.00 | L53: =SUM(L52) -> 0.04 | O53: =SUM(O52) -> 0.40 | P53: =SUM(P52) -> 8.20 | Q53: =SUM(Q52) -> 34.10 | R53: =SUM(R52) -> 9.10 | S53: =SUM(S52) -> 0.52
F55: Итого- | G55: =((G42+G43+G50+G52)+(G46+G47+G50+G52))/2 -> 13.69 | H55: =((H42+H43+H50+H52)+(H46+H47+H50+H52))/2 -> 12.43 | I55: 11.31 | J55: 68.60 | K55: 429.50 | L55: 0.20 | M55: 0.68 | N55: 26.25 | O55: 1.77 | P55: 199.35 | Q55: 323.80 | R55: 132.68 | S55: 30.04
B56: 4-ый день (четверг)
B57: ПЕРВОЕ БЛЮДО и МУЧНОЕ ИЗДЕЛИЕ
A58: № 111/2004 | B58: Борщ Сибирский из свеж.капусты, с картофелем, фасолью конс., со сметаной | F58: 250/5 | G58: 8.54 | H58: 3.40 | I58: 4.90 | J58: 13.20 | K58: 110.00 | L58: 0.03 | M58: 6.37 | N58: 23.40 | O58: 0.25 | P58: 31.40 | Q58: 39.70 | R58: 17.00 | S58: 0.78
A59: 424/2017 | B59: Булочка "Домашняя" | F59: 75 | G59: 1.84 | H59: 3.05 | I59: 9.23 | J59: 1.68 | K59: 203.00 | L59: 0.06 | N59: 9.00 | O59: 2.00 | P59: 16.00 | Q59: 44.00 | R59: 6.00 | S59: 0.60
B60: ИЛИ | H60: =SUM(H58:H59) -> 6.45 | I60: =SUM(I58:I59) -> 14.13 | J60: 14.88 | K60: 313.00 | L60: 0.09 | M60: 6.37 | N60: 32.40 | O60: 2.25 | P60: 47.40 | Q60: 83.70 | R60: 23.00 | S60: 1.38
B61: ХОЛОДНАЯ ЗАКУСКА И ВТОРОЕ БЛЮДО
A62: 337/217 | B62: Яйцо вареное | F62: 1 шт | G62: 5.21 | H62: 5.04 | I62: 4.76 | J62: 0.18 | K62: 76.00 | L62: 0.03 | N62: 0.10 | O62: 0.20 | P62: 22.00 | Q62: 77.00 | R62: 5.00 | S62: 1.00
A63: №302/2004 | B63: Каша кукурузная молочная с маслом сливочным на полив | F63: 150/5 | G63: 6.50 | H63: 6.28 | I63: 7.55 | J63: 25.59 | K63: 195.00 | L63: 0.15 | M63: 0.25 | N63: 37.70 | O63: 0.68 | P63: 156.02 | Q63: 193.50 | R63: 55.70 | S63: 1.31
B64: НАПИТОК | H64: =SUM(H63:H63) -> 6.28 | I64: 7.55 | J64: 25.59 | K64: 195.00 | L64: 0.15 | M64: 0.25 | N64: 37.70 | O64: 0.68 | P64: 156.02 | Q64: 193.50 | R64: 55.70 | S64: 1.31
A66: № 376/2017 | B66: Чай черный с сахаром | F66: 200/15 | G66: 0.79 | H66: 0.46 | I66: 0.02 | J66: 16.25 | K66: 67.00 | L66: 0.00 | M66: 0.00 | N66: 0.00 | O66: 0.00 | P66: 0.40 | Q66: 0.00 | R66: 0.00 | S66: 0.40
H67: =SUM(H83) -> 0.80 | J67: =SUM(J83) -> 29.50 | K67: =SUM(K83) -> 116.00 | M67: =SUM(M83) -> 0.80 | O67: =SUM(O83) -> 1.10 | P67: =SUM(P83) -> 32.60 | Q67: =SUM(Q83) -> 29.20 | R67: =SUM(R83) -> 21.00 | S67: =SUM(S83) -> 1.20
A68: ТТК, акт 15 | B68: Хлеб сельский / хлеб белый | F68: 20/20 | G68: 1.92 | H68: 2.90 | I68: 0.80 | J68: 17.00 | K68: 90.00 | L68: 0.04 | O68: 0.40 | P68: 8.70 | Q68: 34.10 | R68: 9.10 | S68: 0.52
H69: =H68 -> 2.90 | I69: =I68 -> 0.80 | J69: 17.00 | K69: 90.00 | L69: 0.04 | M69: 0.00 | N69: 0.00 | O69: 0.40 | P69: 8.70 | Q69: 34.10 | R69: 9.10 | S69: 0.52
F71: Итого- | G71: =((G58+G59+G66+G68)+(G63+G62+G66+G68))/2 -> 13.76 | H71: 12.25 | I71: 14.04 | J71: 53.58 | K71: 449.00 | L71: 0.17 | M71: 3.31 | N71: 35.10 | O71: 1.97 | P71: 121.81 | Q71: 211.20 | R71: 50.95 | S71: 2.76
B72: 5-ый день (пятница)
B73: ПЕРВОЕ БЛЮДО и КОНДИТЕРСКОЕ ИЗДЕЛИЕ
A74: №114/2017 | B74: Суп - лапша домашняя с картофелем | F74: 250 | G74: 5.71 | H74: 4.76 | I74: 6.79 | J74: 11.70 | K74: 137.32 | L74: 0.56 | M74: 4.60 | N74: 16.84 | O74: 1.29 | P74: 26.72 | Q74: 57.70 | R74: 20.28 | S74: 0.93
A75: ТТК | B75: Вафли | F75: 50 | G75: 4.48 | H75: 2.23 | I75: 2.94 | J75: 22.30 | K75: 125.00 | L75: 0.02 | N75: 3.00 | O75: 1.05 | P75: 8.70 | Q75: 27.00 | R75: 6.00 | S75: 0.63
H76: =SUM(H74:H75) -> 6.99 | I76: =SUM(I74:I75) -> 9.73 | J76: 34.00 | K76: 262.32 | L76: 0.58 | M76: 4.60 | N76: 19.84 | O76: 2.34 | P76: 35.42 | Q76: 84.70 | R76: 26.28 | S76: 1.56
B77: ИЛИ
B78: ВТОРОЕ БЛЮДО И КОНДИТЕРСКОЕ ИЗДЕЛИЕ
A79: 173/2017 | B79: Каша пшеничная молочная с маслом сливочным на полив | F79: 150/5 | G79: 6.21 | H79: 6.28 | I79: 7.55 | J79: 25.60 | K79: 195.00 | L79: 0.15 | M79: 0.25 | N79: 37.70 | O79: 0.68 | P79: 156.02 | Q79: 193.50 | R79: 55.70 | S79: 1.31
A80: ТТК | B80: Вафли | F80: 50 | G80: 4.48 | H80: 2.23 | I80: 2.94 | J80: 22.30 | K80: 125.00 | L80: 0.02 | N80: 3.00 | O80: 1.05 | P80: 8.70 | Q80: 27.00 | R80: 6.00 | S80: 0.63
H81: =SUM(H79:H80) -> 8.51 | I81: =SUM(I79:I80) -> 10.49 | J81: 47.90 | K81: 320.00 | L81: 0.17 | M81: 0.25 | N81: 40.70 | O81: 1.73 | P81: 164.72 | Q81: 220.50 | R81: 61.70 | S81: 1.94
B82: НАПИТОК
A83: № 699/2004 | B83: Напиток лимонный | F83: 200 | G83: 3.09 | H83: 0.80 | J83: 29.50 | K83: 116.00 | L83: 0.02 | M83: 0.80 | O83: 1.10 | P83: 32.60 | Q83: 29.20 | R83: 21.00 | S83: 1.20
H84: =H83 -> 0.80 | I84: =I83 -> 0.00 | J84: 29.50 | K84: 116.00 | L84: 0.02 | M84: 0.80 | N84: 0.00 | O84: 1.10 | P84: 32.60 | Q84: 29.20 | R84: 21.00 | S84: 1.20
A86: ТТК, акт 15 | B86: Хлеб сельский / хлеб белый | F86: 20/20 | G86: 1.92 | H86: 2.90 | I86: 0.80 | J86: 17.00 | K86: 90.00 | L86: 0.04 | O86: 0.40 | P86: 8.70 | Q86: 34.10 | R86: 9.10 | S86: 0.52
H87: =H86 -> 2.90 | I87: =I86 -> 0.80 | J87: 17.00 | K87: 90.00 | L87: 0.04 | M87: 0.00 | N87: 0.00 | O87: 0.40 | P87: 8.70 | Q87: 34.10 | R87: 9.10 | S87: 0.52
F89: Итого- | G89: =((G74+G75+G83+G86)+(G79+G80+G83+G86))/2 -> 15.45 | H89: =((H74+H75+H83+H86)+(H79+H80+H83+H86))/2 -> 11.45 | I89: 10.91 | J89: 87.45 | K89: 497.16 | L89: 0.43 | M89: 3.23 | N89: 30.27 | O89: 3.54 | P89: 141.37 | Q89: 215.90 | R89: 74.09 | S89: 3.47
B92: 6-ой день (суббота)
B93: ПЕРВОЕ БЛЮДО и КОНДИТЕРСКОЕ ИЗДЕЛИЕ
A94: № 96/2017 | B94: Рассольник ленинградский с картофелем, со сметаной | F94: 250/5 | G94: 5.83 | H94: 2.28 | I94: 5.00 | J94: 15.60 | K94: 118.00 | L94: 0.08 | M94: 6.70 | N94: 21.80 | O94: 0.28 | P94: 18.80 | Q94: 65.30 | R94: 22.70 | S94: 0.86
A95: ТТК | B95: Печенье | F95: 40 | G95: 3.31 | H95: 1.26 | I95: 1.48 | J95: 34.76 | K95: 160.00 | L95: 0.01 | N95: 0.90 | O95: 0.32 | P95: 7.20 | Q95: 16.20 | R95: 4.50 | S95: 0.68
H96: =SUM(H94) -> 2.28 | I96: =SUM(I94) -> 5.00 | J96: 15.60 | K96: 118.00 | L96: 0.08 | M96: 6.70 | N96: 21.80 | O96: 0.28 | P96: 18.80 | Q96: 65.30 | R96: 22.70 | S96: 0.86
B97: ИЛИ
B98: ВТОРОЕ БЛЮДО И КОНДИТЕРСКОЕ ИЗДЕЛИЕ
A99: 173/2017 | B99: Каша геркулесовая молочная с маслом сливочным на полив | F99: 150/5 | G99: 6.01 | H99: 6.19 | I99: 7.12 | J99: 28.18 | K99: 203 | L99: 0.16 | M99: 0.23 | N99: 35 | O99: 0.248 | P99: 140.42 | Q99: 179.3 | R99: 48.1 | S99: 1.283
A100: ТТК | B100: Печенье | F100: 40 | G100: 3.31 | H100: 1.26 | I100: 1.48 | J100: 34.76 | K100: 160.00 | L100: 0.01 | N100: 0.90 | O100: 0.32 | P100: 7.20 | Q100: 16.20 | R100: 4.50 | S100: 0.68
H101: =SUM(H99:H100) -> 7.45 | I101: =SUM(I99:I100) -> 8.60 | J101: 62.94 | K101: 362.50 | L101: 0.17 | M101: 0.23 | N101: 35.90 | O101: 0.57 | P101: 147.62 | Q101: 195.50 | R101: 52.60 | S101: 1.96
C103: НАПИТОК
A104: № 376/2017 | B104: Чай черный с сахаром | F104: 200/15 | G104: 0.79 | H104: 0.46 | I104: 0.02 | J104: 16.25 | K104: 67.00 | L104: 0.00 | M104: 0.00 | N104: 0.00 | O104: 0.00 | P104: 0.40 | Q104: 0.00 | R104: 0.00 | S104: 0.40
H105: =SUM(H104) -> 0.46 | J105: =SUM(J104) -> 16.25 | K105: =SUM(K104) -> 67.00 | L105: =SUM(L104) -> 0.00 | M105: =SUM(M104) -> 0.00 | O105: =SUM(O104) -> 0.00 | P105: =SUM(P104) -> 0.40 | Q105: =SUM(Q104) -> 0.00 | R105: =SUM(R104) -> 0.00 | S105: =SUM(S104) -> 0.40
A106: ТТК, акт 15 | B106: Хлеб сельский / хлеб белый | F106: 20/20 | G106: 1.92 | H106: 2.90 | I106: 0.80 | J106: 17.00 | K106: 90.00 | L106: 0.04 | O106: 0.40 | P106: 8.70 | Q106: 34.10 | R106: 9.10 | S106: 0.52
H107: =H106 -> 2.90 | I107: =I106 -> 0.80 | J107: 17.00 | K107: 90.00 | L107: 0.04 | M107: 0.00 | N107: 0.00 | O107: 0.40 | P107: 8.70 | Q107: 34.10 | R107: 9.10 | S107: 0.52
F109: Итого- | G109: =((G94+G95+G104+G106)+(G99+G100+G104+G106))/2 -> 11.94 | H109: =((H94+H95+H104+H106)+(H99+H100+H104+H106))/2 -> 8.86 | I109: 8.36 | J109: 89.90 | K109: 477.25 | L109: 0.17 | M109: 3.47 | N109: 29.30 | O109: 0.98 | P109: 95.91 | Q109: 172.60 | R109: 49.00 | S109: 2.67
B111: Итого за 6 дней: | G111: =(G109+G89+G71+G55+G38+G21)/6 -> 14.68 | H111: =H109+H89+H71+H55+H38+H21 -> 67.86 | I111: 64.05 | J111: 501.36 | K111: 2944.31 | L111: 1.26 | M111: 18.15 | N111: 198.74 | O111: 11.66 | P111: 944.96 | Q111: 1345.97 | R111: 413.55 | S111: 43.73
B112: ООО "АБК-Пэймент"
B113: МЕНЮ ДОПОЛНИТЕЛЬНОГО ПИТАНИЯ (ОБЕД)
B114: для учащихся с 7 лет до 11 лет г.Нижнекамск
B115: на осеене-зимний период
A116: 2 неделя
B117: 1-ий день (понедельник)
A119: № Сборник рецептур | B119: Наименование блюд | F119: выход | G119: стоимость | H119: белки | I119: жиры | J119: углеводы | K119: ККАЛ | L119: В1 | M119: С | N119: А | O119: Е | P119: Са | Q119: Р | R119: Мg | S119: Fe
B120: ПЕРВОЕ БЛЮДО И МУЧНОЕ ИЗДЕЛИЕ
A121: №108/2017 | B121: Суп картофельный с клецками | F121: 250 | G121: 5.09 | H121: 3.55 | I121: 4.59 | J121: 18.79 | K121: 144.00 | L121: 0.11 | M121: 5.75 | N121: 21.05 | O121: 1.62 | P121: 33.40 | Q121: 72.22 | R121: 25.35 | S121: 1.17
A122: 425/2017 | B122: Булочка "Дорожная" | F122: 50 | G122: 3.93 | H122: 3.60 | I122: 7.40 | J122: 28.10 | K122: 194.00 | L122: 0.06 | N122: 9.00 | O122: 2.00 | P122: 16.00 | Q122: 44.00 | R122: 6.00 | S122: 0.60
B123: ИЛИ | H123: =SUM(H121:H122) -> 7.15 | I123: =SUM(I121:I122) -> 11.99 | J123: 46.89 | K123: 338.00 | L123: 0.17 | M123: 5.75 | N123: 30.05 | O123: 3.62 | P123: 49.40 | Q123: 116.22 | R123: 31.35 | S123: 1.77
B124: ХОЛОДНАЯ ЗАКУСКА И ВТОРОЕ БЛЮДО
A125: 15/2017 | B125: Сыр (порциями) | F125: 15 | G125: 5.44 | H125: 3.95 | I125: 3.99 | J125: 0.00 | K125: 53.00 | L125: 0.01 | M125: 0.11 | N125: 0.00 | O125: 0.06 | P125: 150.00 | Q125: 90.00 | R125: 8.25 | S125: 0.11
A126: 173/2017 | B126: Каша полбяная молочная с маслом сливочным на полив | F126: 150/5 | G126: 6.14 | H126: 11.73 | I126: 15.39 | J126: 52.96 | K126: 396.00 | L126: 0.20 | M126: 1.13 | N126: 45.33 | O126: 1.43 | P126: 72.53 | Q126: 251.00 | R126: 174.67 | S126: 5.31
H127: =SUM(H126:H126) -> 11.73 | I127: 15.39 | J127: 52.96 | K127: 396.00 | L127: 0.20 | M127: 1.13 | N127: 45.33 | O127: 1.43 | P127: 72.53 | Q127: 251.00 | R127: 174.67 | S127: 5.31
B128: НАПИТКИ
A129: 377/2017 | B129: Чай черный с лимоном, с сахаром | F129: 200/15/7 | G129: 1.85 | H129: 0.13 | I129: 0.02 | J129: 15.20 | K129: 62.00 | M129: 2.83 | O129: 0.01 | P129: 14.20 | Q129: 4.40 | R129: 2.40 | S129: 0.36
H130: =H129 -> 0.13 | I130: =I129 -> 0.02 | J130: 15.20 | K130: 62.00 | L130: 0.00 | M130: 2.83 | N130: 0.00 | O130: 0.01 | P130: 14.20 | Q130: 4.40 | R130: 2.40 | S130: 0.36
A132: ТТК, акт 15 | B132: Хлеб сельский / хлеб белый | F132: 20/20 | G132: 1.92 | H132: 2.90 | I132: 0.80 | J132: 17.00 | K132: 90.00 | L132: 0.04 | O132: 0.40 | P132: 8.70 | Q132: 34.10 | R132: 9.10 | S132: 0.52
F134: Итого- | G134: =((G121+G122+G129+G132)+(G126+G125+G129+G132))/2 -> 14.07 | H134: 14.45 | I134: 16.51 | J134: 82.13 | K134: 545.50 | L134: 0.23 | M134: 6.33 | N134: 37.69 | O134: 2.97 | P134: 158.87 | Q134: 267.11 | R134: 118.64 | S134: 4.48
B136: 2-ой день (вторник)
C137: ПЕРВОЕ БЛЮДО И КОНДИТЕРСКОЕ ИЗДЕЛИЕ
A138: 112/2017 | B138: Суп картофельный с лапшой домашней | F138: 250 | G138: 5.71 | H138: 4.76 | I138: 6.79 | J138: 11.70 | K138: 137.32 | L138: 0.56 | M138: 4.60 | N138: 16.84 | O138: 1.29 | P138: 26.72 | Q138: 57.70 | R138: 20.28 | S138: 0.93
A139: ТТК | B139: Печенье | F139: 40 | G139: 3.31 | H139: 1.26 | I139: 1.48 | J139: 34.76 | K139: 160.00 | L139: 0.01 | N139: 0.90 | O139: 0.32 | P139: 7.20 | Q139: 16.20 | R139: 4.50 | S139: 0.68
B140: ИЛИ | H140: =SUM(H138:H139) -> 6.02 | I140: =SUM(I138:I139) -> 8.27 | J140: 46.46 | K140: 297.32 | L140: 0.57 | M140: 4.60 | N140: 17.74 | O140: 1.61 | P140: 33.92 | Q140: 73.90 | R140: 24.78 | S140: 1.61
B142: ВТОРОЕ БЛЮДО И КОНДИТЕРСКОЕ ИЗДЕЛИЕ
A143: № 181/2017 | B143: Каша манная молочная с маслом сливочным на полив | F143: 150/5 | G143: 5.70 | H143: 5.61 | I143: 5.81 | J143: 28.53 | K143: 189.00 | L143: 0.07 | M143: 0.25 | N143: 36.30 | O143: 0.63 | P143: 140.56 | Q143: 117.50 | R143: 20.60 | S143: 0.47
A144: ТТК | B144: Печенье | F144: 40 | G144: 3.31 | H144: 1.26 | I144: 1.48 | J144: 34.76 | K144: 160.00 | L144: 0.01 | N144: 0.90 | O144: 0.32 | P144: 7.20 | Q144: 16.20 | R144: 4.50 | S144: 0.68
H145: =SUM(H143:H144) -> 6.87 | I145: =I143 -> 5.81 | J145: 28.53 | K145: 189.00 | L145: 0.07 | M145: 0.25 | N145: 36.30 | O145: 0.63 | P145: 140.56 | Q145: 117.50 | R145: 20.60 | S145: 0.47
B146: НАПИТОК
A147: № 376/2017 | B147: Чай черный с сахаром | F147: 200/15 | G147: 0.79 | H147: 0.46 | I147: 0.02 | J147: 16.25 | K147: 67.00 | L147: 0.00 | M147: 0.00 | N147: 0.00 | O147: 0.00 | P147: 0.40 | Q147: 0.00 | R147: 0.00 | S147: 0.40
H148: =H147 -> 0.46 | I148: =I147 -> 0.02 | J148: 16.25 | K148: 67.00 | L148: 0.00 | M148: 0.00 | N148: 0.00 | O148: 0.00 | P148: 0.40 | Q148: 0.00 | R148: 0.00 | S148: 0.40
A149: ТТК, акт 15 | B149: Хлеб сельский / хлеб белый | F149: 20/20 | G149: 1.92 | H149: 2.90 | I149: 0.80 | J149: 17.00 | K149: 90.00 | L149: 0.04 | O149: 0.40 | P149: 8.70 | Q149: 34.10 | R149: 9.10 | S149: 0.52
H150: =H149 -> 2.90 | I150: =I149 -> 0.80 | J150: 17.00 | K150: 90.00 | L150: 0.04 | M150: 0.00 | N150: 0.00 | O150: 0.40 | P150: 8.70 | Q150: 34.10 | R150: 9.10 | S150: 0.52
F152: Итого- | G152: =((G138+G139+G147+G149)+(G143+G144+G147+G149))/2 -> 11.73 | H152: =((H138+H139+H147+H149)+(H143+H144+H147+H149))/2 -> 9.81 | I152: 8.60 | J152: 88.13 | K152: 480.16 | L152: 0.37 | M152: 2.43 | N152: 27.47 | O152: 1.68 | P152: 99.94 | Q152: 137.90 | R152: 34.04 | S152: 2.30
B154: 3-ий день (среда)
B155: ПЕРВОЕ БЛЮДО И МУЧНОЕ ИЗДЕЛИЕ
A156: № 102/2017 | B156: Суп картофельный с горохом с гренками | F156: 250/25 | G156: 5.19 | H156: 5.40 | I156: 3.40 | J156: 15.60 | K156: 115.00 | L156: 0.19 | M156: 5.70 | N156: 14.20 | O156: 0.30 | P156: 25.10 | Q156: 81.40 | R156: 30.50 | S156: 1.52
A157: 424/2017 | B157: Булочка "Домашняя" | F157: 75 | G157: 1.84 | H157: 3.05 | I157: 9.23 | J157: 1.68 | K157: 203.00 | L157: 0.06 | N157: 9.00 | O157: 2.00 | P157: 16.00 | Q157: 44.00 | R157: 6.00 | S157: 0.60
H158: =SUM(H156:H157) -> 8.45 | I158: =SUM(I156:I157) -> 12.63 | J158: 17.28 | K158: 318.00 | L158: 0.25 | M158: 5.70 | N158: 23.20 | O158: 2.30 | P158: 41.10 | Q158: 125.40 | R158: 36.50 | S158: 2.12
B159: ИЛИ
C160: ХОЛОДНАЯ ЗАКУСКА И ВТОРОЕ БЛЮДО
A161: 14/2017 | B161: Масло сливочное порционно | F161: 10.00 | G161: 3.58 | H161: 0.08 | I161: 7.26 | J161: 0.14 | K161: 66.00 | N161: 40.00 | O161: 0.10 | P161: 2.00 | Q161: 3.00
A162: №181/2017 | B162: Каша пшенная молочная с маслом сливочным на полив | F162: 150/5 | G162: 6.38 | H162: 5.00 | I162: 8.20 | J162: 30.30 | K162: 215.00 | L162: 0.07 | M162: 0.25 | N162: 36.30 | O162: 0.63 | P162: 140.56 | Q162: 117.50 | R162: 20.60 | S162: 0.47
H163: =SUM(H162:H162) -> 5.00 | I163: 8.20 | J163: 30.30 | K163: 215.00 | L163: 0.07 | M163: 0.25 | N163: 36.30 | O163: 0.63 | P163: 140.56 | Q163: 117.50 | R163: 20.60 | S163: 0.47
B164: НАПИТКИ
A165: 376/2017 | B165: Чай с шиповником и сахаром | F165: 200/15/15 | G165: 3.29 | H165: 4.90 | I165: 5.00 | J165: 32.50 | K165: 190.00 | L165: 0.02 | M165: 0.15 | N165: 9.60 | O165: 0.09 | P165: 107.30 | Q165: 95.20 | R165: 26.00 | S165: 0.84
H166: =H165 -> 4.90 | I166: =I165 -> 5.00 | J166: 32.50 | K166: 190.00 | L166: 0.02 | M166: 0.15 | N166: 9.60 | O166: 0.09 | P166: 107.30 | Q166: 95.20 | R166: 26.00 | S166: 0.84
A167: ТТК, акт 15 | B167: Хлеб сельский / хлеб белый | F167: 20/20 | G167: 1.92 | H167: 2.90 | I167: 0.80 | J167: 17.00 | K167: 90.00 | L167: 0.04 | O167: 0.40 | P167: 8.70 | Q167: 34.10 | R167: 9.10 | S167: 0.52
H168: =H167 -> 2.90 | I168: =I167 -> 0.80 | J168: 17.00 | K168: 90.00 | L168: 0.04 | M168: 0.00 | N168: 0.00 | O168: 0.40 | P168: 8.70 | Q168: 34.10 | R168: 9.10 | S168: 0.52
F170: Итого- | G170: =((G156+G157+G165+G167)+(G162+G161+G165+G167))/2 -> 13.71 | H170: 14.57 | I170: 19.85 | J170: 73.36 | K170: 579.50 | L170: 0.22 | M170: 3.13 | N170: 59.35 | O170: 2.01 | P170: 207.83 | Q170: 252.25 | R170: 63.65 | S170: 2.66
B172: 4-ый день (четверг)
C173: ПЕРВОЕ БЛЮДО И КОНДИТЕРСКОЕ ИЗДЕЛИЕ
A174: № 96/2017 | B174: Рассольник ленинградский с картофелем, со сметаной | F174: 250/5 | G174: 5.83 | H174: 2.28 | I174: 5.00 | J174: 15.60 | K174: 118.00 | L174: 0.08 | M174: 6.70 | N174: 21.80 | O174: 0.28 | P174: 18.80 | Q174: 65.30 | R174: 22.70 | S174: 0.86
A175: ТТК | B175: Вафли | F175: 50 | G175: 4.48 | H175: 2.23 | I175: 2.94 | J175: 22.30 | K175: 125.00 | L175: 0.02 | N175: 3.00 | O175: 1.05 | P175: 8.70 | Q175: 27.00 | R175: 6.00 | S175: 0.63
B176: ИЛИ | H176: =SUM(H174:H175) -> 4.51 | I176: =SUM(I174:I175) -> 7.94 | J176: 37.90 | K176: 243.00 | L176: 0.10 | M176: 6.70 | N176: 24.80 | O176: 1.33 | P176: 27.50 | Q176: 92.30 | R176: 28.70 | S176: 1.49
B177: ВТОРОЕ БЛЮДО И КОНДИТЕРСКОЕ ИЗДЕЛИЕ
A178: 173/2017 | B178: Каша геркулесовая молочная с маслом сливочным на полив | F178: 150/5 | G178: 6.01 | H178: 6.19 | I178: 7.12 | J178: 28.18 | K178: 203 | L178: 0.16 | M178: 0.23 | N178: 35 | O178: 0.248 | P178: 140.42 | Q178: 179.3 | R178: 48.1 | S178: 1.283
A179: ТТК | B179: Вафли | F179: 50 | G179: 4.48 | H179: 2.23 | I179: 2.94 | J179: 22.30 | K179: 125.00 | L179: 0.02 | N179: 3.00 | O179: 1.05 | P179: 8.70 | Q179: 27.00 | R179: 6.00 | S179: 0.63
H180: =SUM(H178:H179) -> 8.42 | I180: =SUM(I178:I179) -> 10.06 | J180: 50.48 | K180: 327.50 | L180: 0.18 | M180: 0.23 | N180: 38.00 | O180: 1.30 | P180: 149.12 | Q180: 206.30 | R180: 54.10 | S180: 1.91
B181: НАПИТОК
A182: № 376/2017 | B182: Чай черный с сахаром | F182: 200/15 | G182: 0.79 | H182: 0.46 | I182: 0.02 | J182: 16.25 | K182: 67.00 | L182: 0.00 | M182: 0.00 | N182: 0.00 | O182: 0.00 | P182: 0.40 | Q182: 0.00 | R182: 0.00 | S182: 0.40
H183: =H182 -> 0.46 | I183: =I182 -> 0.02 | J183: 16.25 | K183: 67.00 | L183: 0.00 | M183: 0.00 | N183: 0.00 | O183: 0.00 | P183: 0.40 | Q183: 0.00 | R183: 0.00 | S183: 0.40
A184: ТТК, акт 15 | B184: Хлеб сельский / хлеб белый | F184: 20/20 | G184: 1.92 | H184: 2.90 | I184: 0.80 | J184: 17.00 | K184: 90.00 | L184: 0.04 | O184: 0.40 | P184: 8.70 | Q184: 34.10 | R184: 9.10 | S184: 0.52
H185: =H184 -> 2.90 | I185: =I184 -> 0.80 | J185: 17.00 | K185: 90.00 | L185: 0.04 | M185: 0.00 | N185: 0.00 | O185: 0.40 | P185: 8.70 | Q185: 34.10 | R185: 9.10 | S185: 0.52
F187: Итого- | G187: =((G174+G175+G182+G184)+(G178+G179+G182+G184))/2 -> 13.11 | H187: =((H174+H175+H182+H184)+(H178+H179+H182+H184))/2 -> 9.83 | I187: 9.82 | J187: 77.44 | K187: 442.25 | L187: 0.18 | M187: 3.47 | N187: 31.40 | O187: 1.71 | P187: 97.41 | Q187: 183.40 | R187: 50.50 | S187: 2.62
B191: 5-ый день (пятница)
B192: ПЕРВОЕ БЛЮДО И МУЧНОЕ ИЗДЕЛИЕ
A193: № 82/2017 | B193: Борщ со св. капустой, картофелем, сметаной | F193: 250/10 | G193: 6.19 | H193: 1.60 | I193: 4.70 | J193: 9.70 | K193: 87.00 | L193: 0.03 | M193: 6.37 | N193: 23.40 | O193: 0.25 | P193: 31.40 | Q193: 39.70 | R193: 17.00 | S193: 0.78
A194: Пр.УОП | B194: Сдоба "Майская" с повидлом | F194: 50 | G194: 2.25 | H194: 1.90 | I194: 0.30 | J194: 30.70 | K194: 136.00 | L194: 0.06 | N194: 5.00 | O194: 0.60 | P194: 34.00 | Q194: 52.00 | R194: 9.00 | S194: 0.60
C195: ИЛИ | H195: =SUM(H193:H194) -> 3.50 | I195: =SUM(I193:I194) -> 5.00 | J195: 40.40 | K195: 223.00 | L195: 0.09 | M195: 6.37 | N195: 28.40 | O195: 0.85 | P195: 65.40 | Q195: 91.70 | R195: 26.00 | S195: 1.38
C196: ХОЛОДНАЯ ЗАКУСКА И ВТОРОЕ БЛЮДО
A197: №338/2017 | B197: Фрукты (яблоки, апельсины) | F197: 110 | G197: 12.62 | H197: 0.40 | I197: 0.40 | J197: 9.80 | K197: 47.30 | L197: 0.03 | M197: 10.00 | O197: 0.20 | P197: 16.00 | Q197: 11.00 | R197: 9.00 | S197: 2.20
A198: 174/2017 | B198: Каша кукурузная молочная с маслом сливочным на полив | F198: 150/5 | G198: 6.50 | H198: 6.28 | I198: 7.55 | J198: 25.59 | K198: 195.00 | L198: 0.15 | M198: 0.25 | N198: 37.70 | O198: 0.68 | P198: 156.02 | Q198: 193.50 | R198: 55.70 | S198: 1.31
H199: =SUM(H198:H198) -> 6.28 | I199: 7.55 | J199: 25.59 | K199: 195.00 | L199: 0.15 | M199: 0.25 | N199: 37.70 | O199: 0.68 | P199: 156.02 | Q199: 193.50 | R199: 55.70 | S199: 1.31
B200: НАПИТОК
A201: № 699/2004 | B201: Напиток лимонный | F201: 200 | G201: 3.09 | H201: 0.80 | J201: 29.50 | K201: 116.00 | L201: 0.02 | M201: 0.80 | O201: 1.10 | P201: 32.60 | Q201: 29.20 | R201: 21.00 | S201: 1.20
H202: =H201 -> 0.80 | I202: =I201 -> 0.00 | J202: 29.50 | K202: 116.00 | L202: 0.02 | M202: 0.80 | N202: 0.00 | O202: 1.10 | P202: 32.60 | Q202: 29.20 | R202: 21.00 | S202: 1.20
A203: ТТК, акт 15 | B203: Хлеб сельский / хлеб белый | F203: 20/20 | G203: 1.92 | H203: 2.90 | I203: 0.80 | J203: 17.00 | K203: 90.00 | L203: 0.04 | O203: 0.40 | P203: 8.70 | Q203: 34.10 | R203: 9.10 | S203: 0.52
H204: =H203 -> 2.90 | I204: =I203 -> 0.80 | J204: 17.00 | K204: 90.00 | L204: 0.04 | M204: 0.00 | N204: 0.00 | O204: 0.40 | P204: 8.70 | Q204: 34.10 | R204: 9.10 | S204: 0.52
F206: Итого- | G206: =((G193+G194+G201+G203)+(G198+G197+G201+G203))/2 -> 18.79 | H206: 8.79 | I206: 7.28 | J206: 84.40 | K206: 438.65 | L206: 0.19 | M206: 9.11 | N206: 33.05 | O206: 2.37 | P206: 160.01 | Q206: 211.40 | R206: 75.45 | S206: 4.16
B208: 6-ой день (суббота)
B209: ПЕРВОЕ БЛЮДО И КОНДИТЕРСКОЕ ИЗДЕЛИЕ
A210: №114/2017 | B210: Суп - лапша домашняя с картофелем | F210: 250 | G210: 5.71 | H210: 4.76 | I210: 6.79 | J210: 11.70 | K210: 137.32 | L210: 0.56 | M210: 4.60 | N210: 16.84 | O210: 1.29 | P210: 26.72 | Q210: 57.70 | R210: 20.28 | S210: 0.93
A211: ТТК | B211: Печенье | F211: 40 | G211: 3.31 | H211: 1.26 | I211: 1.48 | J211: 34.76 | K211: 160.00 | L211: 0.01 | N211: 0.90 | O211: 0.32 | P211: 7.20 | Q211: 16.20 | R211: 4.50 | S211: 0.68
B212: ИЛИ | H212: =SUM(H210:H211) -> 6.02 | I212: =SUM(I210:I211) -> 8.27 | J212: 46.46 | K212: 297.32 | L212: 0.57 | M212: 4.60 | N212: 17.74 | O212: 1.61 | P212: 33.92 | Q212: 73.90 | R212: 24.78 | S212: 1.61
B213: ВТОРОЕ БЛЮДО И КОНДИТЕРСКОЕ ИЗДЕЛИЕ
A214: № 181/2017 | B214: Каша манная молочная с маслом сливочным на полив | F214: 150/5 | G214: 5.70 | H214: 5.61 | I214: 5.81 | J214: 28.53 | K214: 189.00 | L214: 0.07 | M214: 0.25 | N214: 36.30 | O214: 0.63 | P214: 140.56 | Q214: 117.50 | R214: 20.60 | S214: 0.47
A215: ТТК | B215: Печенье | F215: 40 | G215: 3.31 | H215: 1.26 | I215: 1.48 | J215: 34.76 | K215: 160.00 | L215: 0.01 | N215: 0.90 | O215: 0.32 | P215: 7.20 | Q215: 16.20 | R215: 4.50 | S215: 0.68
H216: =SUM(H214:H215) -> 6.87 | I216: =SUM(I214:I215) -> 7.29 | J216: 63.29 | K216: 349.00 | L216: 0.08 | M216: 0.25 | N216: 37.20 | O216: 0.95 | P216: 147.76 | Q216: 133.70 | R216: 25.10 | S216: 1.15
B217: НАПИТОК
A218: № 376/2017 | B218: Чай черный с сахаром | F218: 200/15 | G218: 0.79 | H218: 0.46 | I218: 0.02 | J218: 16.25 | K218: 67.00 | L218: 0.00 | M218: 0.00 | N218: 0.00 | O218: 0.00 | P218: 0.40 | Q218: 0.00 | R218: 0.00 | S218: 0.40
H219: =SUM(H218:H218)/2 -> 0.23 | I219: 0.01 | J219: 8.13 | K219: 33.50 | L219: 0.00 | M219: 0.00 | N219: 0.00 | O219: 0.00 | P219: 0.20 | Q219: 0.00 | R219: 0.00 | S219: 0.20
A220: ТТК, акт 15 | B220: Хлеб сельский / хлеб белый | F220: 20/20 | G220: 1.92 | H220: 2.90 | I220: 0.80 | J220: 17.00 | K220: 90.00 | L220: 0.04 | O220: 0.40 | P220: 8.70 | Q220: 34.10 | R220: 9.10 | S220: 0.52
H221: =H220 -> 2.90 | I221: =I220 -> 0.80 | J221: 17.00 | K221: 90.00 | L221: 0.04 | M221: 0.00 | N221: 0.00 | O221: 0.40 | P221: 8.70 | Q221: 34.10 | R221: 9.10 | S221: 0.52
F223: Итого- | G223: =((G210+G211+G218+G220)+(G214+G215+G218+G220))/2 -> 11.73 | H223: =((H210+H211+H218+H220)+(H214+H215+H218+H220))/2 -> 9.81 | I223: 8.60 | J223: 88.13 | K223: 480.16 | L223: 0.37 | M223: 2.43 | N223: 27.47 | O223: 1.68 | P223: 99.94 | Q223: 137.90 | R223: 34.04 | S223: 2.30
B225: Итого за 6 дней | G225: =(G223+G206+G187+G170+G152+G134)/6 -> 13.85 | H225: =H223+H206+H187+H170+H152+H134 -> 67.24 | I225: 70.65 | J225: 493.57 | K225: 2966.22 | L225: 1.56 | M225: 26.88 | N225: 216.43 | O225: 12.41 | P225: 824.00 | Q225: 1189.96 | R225: 376.32 | S225: 18.52
B227: Итого за 12 дней | G227: =(G225+G111)/2 -> 14.27 | H227: =H225+H111 -> 135.10 | I227: 134.69 | J227: 994.93 | K227: 5910.53 | L227: 2.82 | M227: 45.03 | N227: 415.17 | O227: 24.07 | P227: 1768.95 | Q227: 2535.93 | R227: 789.87 | S227: 62.25

Sheet Лист3
E1: ООО "АБК-Пэймент"
E2: Примерное цикличное меню группы продленного дня для учащихся младших классов (с 7 до 11 лет) общеобразовательных организаций города Нижнекамска
E3: г.Нижнекамска и Нижнекамского района
A5: 1 неделя
B6: 1-ый день (понедельник)
A7: № Сборника рецептур | B7: Наименование блюд | F7: цена | G7: выход | H7: белки | I7: жиры | J7: углеводы | K7: ККАЛ | L7: В1 | M7: С | N7: А | O7: Е | P7: Са | Q7: Р | R7: Мg | S7: Fe
A8: 103 /2017 | B8: Суп картофельный с макаронными изделиями | G8: 250 | H8: 5.42 | I8: 4.7 | J8: 21.03 | K8: 163.47 | L8: 0.13 | M8: 9.96 | N8: 2.2 | O8: 1.79 | P8: 37.41 | Q8: 103.94 | R8: 36.27 | S8: 1.525
A9: 173/2017 | B9: Каша геркулесовая молочная с маслом сливочным на полив | G9: 150/5 | H9: 6.19 | I9: 7.12 | J9: 28.18 | K9: 203 | L9: 0.16 | M9: 0.23 | N9: 35 | O9: 0.248 | P9: 140.42 | Q9: 179.3 | R9: 48.1 | S9: 1.283
A10: ТТК | B10: Печенье | G10: 40 | H10: 1.26 | I10: 1.48 | J10: 34.76 | K10: 160.00 | L10: 0.01 | N10: 0.90 | O10: 0.32 | P10: 7.20 | Q10: 16.20 | R10: 4.50 | S10: 0.68
A11: 376/2017 | B11: Чай черный с сахаром | G11: 200/15 | H11: 0.46 | I11: 0.02 | J11: 16.25 | K11: 67.00 | L11: 0.00 | M11: 0.00 | N11: 0.00 | O11: 0.00 | P11: 0.40 | Q11: 0.00 | R11: 0.00 | S11: 0.40
A12: ТТК, акт 15 | B12: Хлеб сельский / хлеб белый | G12: 20/20 | H12: 2.90 | I12: 0.80 | J12: 17.00 | K12: 90.00 | L12: 0.04 | O12: 0.40 | P12: 8.70 | Q12: 34.10 | R12: 9.10 | S12: 0.52
B13: ИТОГО | F13: 32 | H13: =SUM(H8:H12) -> 16.23 | I13: 14.12 | J13: 117.22 | K13: 682.97 | L13: 0.34 | M13: 10.19 | N13: 38.10 | O13: 2.76 | P13: 194.13 | Q13: 333.54 | R13: 97.97 | S13: 4.41
B15: 2-ой день (вторник)
A17: 88/2017 | B17: Щи из свежей капусты с картофелем, со сметаной | G17: 250/10 | H17: 15 | I17: 1.8 | J17: 4.8 | K17: 6 | L17: 73 | M17: 0.01 | N17: 8.04 | O17: 23.4 | P17: 0.15 | Q17: 30.4 | R17: 26.2 | S17: 10.4 | T17: 0.36
A18: 174/2017 | B18: Каша рисовая молочная с маслом сливочным на полив | G18: 150/5 | H18: 4.62 | I18: 5.81 | J18: 29.65 | K18: 189.00 | L18: 0.06 | M18: 0.25 | N18: 36.40 | O18: 0.25 | P18: 137.00 | Q18: 137.00 | R18: 30.50 | S18: 0.47
A19: 349/2017 | B19: Напиток из сухофруктов | G19: 200 | H19: 0.66 | I19: 0.09 | J19: 32.01 | K19: 132.80 | L19: 0.02 | M19: 0.72 | O19: 0.51 | P19: 32.48 | Q19: 23.44 | R19: 17.46 | S19: 0.69
A20: ТТК, акт 15 | B20: Хлеб сельский / хлеб белый | G20: 20/20 | H20: 2.90 | I20: 0.80 | J20: 17.00 | K20: 90.00 | L20: 0.04 | O20: 0.40 | P20: 8.70 | Q20: 34.10 | R20: 9.10 | S20: 0.52
B21: ИТОГО | F21: 32 | H21: =SUM(H17:H20) -> 23.18 | I21: 8.50 | J21: 83.46 | K21: 417.80 | L21: 73.12 | M21: 0.98 | N21: 44.44 | O21: 24.56 | P21: 178.33 | Q21: 224.94 | R21: 83.26 | S21: 12.08
B23: 3-ий день (среда)
A25: 102/2017, 123/2016 | B25: Суп картофельный с горохом, с гренками на слив.масле | G25: 250/10 | H25: 7.73 | I25: 5.43 | J25: 24.14 | K25: 185.07 | L25: 0.255 | M25: 5.83 | O25: 2.63 | P25: 46.3 | Q25: 101.8 | R25: 40.77 | S25: 2.05
A26: 293/2017 | B26: Запеканка из творога со сгущенным молоком | G26: 150/20 | H26: 23.95 | I26: 21.32 | J26: 21.84 | K26: 385.00 | L26: 0.14 | M26: 1.00 | N26: 1.20 | O26: 2.15 | P26: 331.75 | Q26: 467.25 | R26: 61.00 | S26: 1.25
A27: 648/2004 | B27: Кисель | G27: 200 | J27: 10.00 | K27: 119.00 | P27: 0.20 | S27: 0.03
A28: ТТК, акт 15 | B28: Хлеб сельский / хлеб белый | G28: 20/20 | H28: 2.90 | I28: 0.80 | J28: 17.00 | K28: 90.00 | L28: 0.04 | O28: 0.40 | P28: 8.20 | Q28: 34.10 | R28: 9.10 | S28: 0.52
B29: ИТОГО | F29: 32 | H29: =SUM(H25:H28) -> 34.58 | I29: =SUM(I25:I28) -> 27.55 | J29: 72.98 | K29: 779.07 | L29: 0.44 | M29: 6.83 | N29: 1.20 | O29: 5.18 | P29: 386.45 | Q29: 603.15 | R29: 110.87 | S29: 3.85
B31: 4-ый день (четверг)
A33: 114/2017 | B33: Суп - лапша домашняя с картофелем | G33: 250 | H33: 6.07 | I33: 8.41 | J33: 14.05 | K33: 198.31 | L33: 0.07 | M33: 5.18 | N33: 18 | O33: 3.2 | P33: 37.49 | Q33: 77.35 | R33: 17.64 | S33: 1.01
A34: №181/2017 | B34: Каша пшенная молочная с маслом сливочным на полив | G34: 150/5 | H34: 5.00 | I34: 8.20 | J34: 30.30 | K34: 215.00 | L34: 0.07 | M34: 0.25 | N34: 36.30 | O34: 0.63 | P34: 140.56 | Q34: 117.50 | R34: 20.60 | S34: 0.47
A35: 376/2017 | B35: Чай черный с сахаром | G35: 200/15 | H35: 0.46 | I35: 0.02 | J35: 16.25 | K35: 67.00 | L35: 0.00 | M35: 0.00 | N35: 0.00 | O35: 0.00 | P35: 0.40 | Q35: 0.00 | R35: 0.00 | S35: 0.40
A36: ТТК, акт 15 | B36: Хлеб сельский / хлеб белый | G36: 20/20 | H36: 2.90 | I36: 0.80 | J36: 17.00 | K36: 90.00 | L36: 0.04 | O36: 0.40 | P36: 8.70 | Q36: 34.10 | R36: 9.10 | S36: 0.52
B37: ИТОГО | F37: 32 | H37: =SUM(H33:H36) -> 14.43 | I37: =SUM(I33:I36) -> 17.43 | J37: 77.60 | K37: 570.31 | L37: 0.18 | M37: 5.43 | N37: 54.30 | O37: 4.23 | P37: 187.15 | Q37: 228.95 | R37: 47.34 | S37: 2.40
B39: 5-ый день (пятница)
A41: 96/2017 | B41: Рассольник ленинградский со сметаной | G41: 250/5 | H41: 1.87 | I41: 6.59 | J41: 12.34 | K41: 123.45 | L41: 0.09 | M41: 8.415 | N41: 10 | O41: 2.38 | P41: 37.95 | Q41: 62.83 | R41: 25.08 | S41: 0.945
A42: 173/2017 | B42: Каша пшеничная молочная с маслом сливочным на полив | G42: 150/5 | H42: 6.28 | I42: 7.55 | J42: 25.60 | K42: 195.00 | L42: 0.15 | M42: 0.25 | N42: 37.70 | O42: 0.68 | P42: 156.02 | Q42: 193.50 | R42: 55.70 | S42: 1.31
A43: № 376/2017 | B43: Чай черный с сахаром | G43: 200/15 | H43: 0.46 | I43: 0.02 | J43: 16.25 | K43: 67.00 | L43: 0.00 | M43: 0.00 | N43: 0.00 | O43: 0.00 | P43: 0.40 | Q43: 0.00 | R43: 0.00 | S43: 0.40
A44: ТТК, акт 15 | B44: Хлеб сельский / хлеб белый | G44: 20/20 | H44: 2.90 | I44: 0.80 | J44: 17.00 | K44: 90.00 | L44: 0.04 | O44: 0.40 | P44: 8.70 | Q44: 34.10 | R44: 9.10 | S44: 0.52
B45: ИТОГО | F45: 32 | H45: =SUM(H41:H44) -> 11.51 | I45: =SUM(I41:I44) -> 14.96 | J45: 71.19 | K45: 475.45 | L45: 0.28 | M45: 8.67 | N45: 47.70 | O45: 3.46 | P45: 203.07 | Q45: 290.43 | R45: 89.88 | S45: 3.18
B48: 6-ой день (суббота)
A50: 98/2017 | B50: Суп крестьянский с крупой | G50: 250 | H50: 6.16 | I50: 8.49 | J50: 7.47 | K50: 113.15 | L50: 0.05 | M50: 11.98 | N50: 4.4 | O50: 2.9 | P50: 47.8 | Q50: 85.98 | R50: 24.1 | S50: 1.04
A51: 173/2017 | B51: Каша геркулесовая молочная с маслом сливочным на полив | G51: 150/5 | H51: 6.19 | I51: 7.12 | J51: 28.18 | K51: 203 | L51: 0.16 | M51: 0.23 | N51: 35 | O51: 0.248 | P51: 140.42 | Q51: 179.3 | R51: 48.1 | S51: 1.283
A52: Акт 20419 | B52: Напиток из замороженных ягод (клюква или черная смородина) | G52: 200 | H52: 0.04 | I52: 0.03 | J52: 28.08 | K52: 114.60 | L52: 0.02 | M52: 26.00 | O52: 0.40 | P52: 18.00 | Q52: 18.00 | R52: 12.00 | S52: 0.80
A53: ТТК, акт 15 | B53: Хлеб сельский / хлеб белый | G53: 20/20 | H53: 2.90 | I53: 0.80 | J53: 17.00 | K53: 90.00 | L53: 0.04 | O53: 0.40 | P53: 8.70 | Q53: 34.10 | R53: 9.10 | S53: 0.52
B54: ИТОГО | F54: 32 | H54: =SUM(H50:H53) -> 15.29 | I54: =SUM(I50:I53) -> 16.44 | J54: 80.73 | K54: 520.25 | L54: 0.27 | M54: 38.21 | N54: 39.40 | O54: 3.95 | P54: 214.92 | Q54: 317.38 | R54: 93.30 | S54: 3.64
B57: Итого за 6 дней: | H57: =#REF!+#REF!+#REF!+#REF!+#REF!+#REF! ->  | I57: =#REF!+#REF!+#REF!+#REF!+#REF!+#REF! ->  | J57: =#REF!+#REF!+#REF!+#REF!+#REF!+#REF! ->  | K57: =#REF!+#REF!+#REF!+#REF!+#REF!+#REF! ->  | L57: =#REF!+#REF!+#REF!+#REF!+#REF!+#REF! ->  | M57: =#REF!+#REF!+#REF!+#REF!+#REF!+#REF! ->  | N57: =#REF!+#REF!+#REF!+#REF!+#REF!+#REF! ->  | O57: =#REF!+#REF!+#REF!+#REF!+#REF!+#REF! ->  | P57: =#REF!+#REF!+#REF!+#REF!+#REF!+#REF! ->  | Q57: =#REF!+#REF!+#REF!+#REF!+#REF!+#REF! ->  | R57: =#REF!+#REF!+#REF!+#REF!+#REF!+#REF! ->  | S57: =#REF!+#REF!+#REF!+#REF!+#REF!+#REF! -> 
B58: ООО "АБК-Пэймент"
B59: Примерное цикличное меню группы продленного дня для учащихся младших классов (с 7 до 11 лет) общеобразовательных организаций города Нижнекамска
B60: г.Нижнекамска и Нижнекамского района
A62: 2 неделя
B63: 1-ий день (понедельник)
A65: № Сборник рецептур | B65: Наименование блюд | F65: цена | G65: выход | H65: белки | I65: жиры | J65: углеводы | K65: ККАЛ | L65: В1 | M65: С | N65: А | O65: Е | P65: Са | Q65: Р | R65: Мg | S65: Fe
A67: 84/2017 | B67: Борщ с фасолью картофелем, со сметаной | G67: 250/5 | H67: 3.69 | I67: 5.87 | J67: 2.35 | K67: 135.85 | L67: 0.1 | M67: 6.72 | N67: 5 | O67: 2.45 | P67: 58.58 | Q67: 102.55 | R67: 34.9 | S67: 1.735
A68: 173/2017 | B68: Каша полбяная молочная с маслом сливочным на полив | G68: 150/5 | H68: 11.73 | I68: 15.39 | J68: 52.96 | K68: 396.00 | L68: 0.20 | M68: 1.13 | N68: 45.33 | O68: 1.43 | P68: 72.53 | Q68: 251.00 | R68: 174.67 | S68: 5.31
A69: № 376/2017 | B69: Чай черный с сахаром | G69: 200/15 | H69: 0.46 | I69: 0.02 | J69: 16.25 | K69: 67.00 | L69: 0.00 | M69: 0.00 | N69: 0.00 | O69: 0.00 | P69: 0.40 | Q69: 0.00 | R69: 0.00 | S69: 0.40
A70: ТТК, акт 15 | B70: Хлеб сельский / хлеб белый | G70: 20/20 | H70: 2.90 | I70: 0.80 | J70: 17.00 | K70: 90.00 | L70: 0.04 | O70: 0.40 | P70: 8.70 | Q70: 34.10 | R70: 9.10 | S70: 0.52
B72: ИТОГО | F72: 32 | H72: =SUM(H67:H71) -> 18.78 | I72: =SUM(I67:I71) -> 22.08 | J72: 88.56 | K72: 688.85 | L72: 0.34 | M72: 7.85 | N72: 50.33 | O72: 4.28 | P72: 140.21 | Q72: 387.65 | R72: 218.67 | S72: =SUM(S67:S71) -> 7.97
B74: 2-ой день (вторник)
A76: 97/2017 | B76: Суп картофельный | G76: 250 | H76: 5.15 | I76: 5.24 | J76: 20.28 | K76: 163 | L76: 0.16 | M76: 14.64 | N76: 5.82 | O76: 1.63 | P76: 41.9 | Q76: 109.68 | R76: 39.71 | S76: 1.63
A77: ТТК | B77: Печенье | G77: 40 | H77: 1.26 | I77: 1.48 | J77: 34.76 | K77: 160.00 | L77: 0.01 | N77: 0.90 | O77: 0.32 | P77: 7.20 | Q77: 16.20 | R77: 4.50 | S77: 0.68
A78: 174/2017 | B78: Каша рисовая молочная с маслом сливочным на полив | G78: 150/5 | H78: 4.62 | I78: 5.81 | J78: 29.65 | K78: 189.00 | L78: 0.06 | M78: 0.25 | N78: 36.40 | O78: 0.25 | P78: 137.00 | Q78: 137.00 | R78: 30.50 | S78: 0.47
A79: № 348/2017 | B79: Компот из урюка | G79: 200 | H79: 0.75 | I79: 0.06 | J79: 27.93 | K79: 116.40 | L79: 0.01 | M79: 0.60 | O79: 0.82 | P79: 33.22 | Q79: 22.80 | R79: 18.16 | S79: 0.48
A80: ТТК, акт 15 | B80: Хлеб сельский / хлеб белый | G80: 20/20 | H80: 2.90 | I80: 0.80 | J80: 17.00 | K80: 90.00 | L80: 0.04 | O80: 0.40 | P80: 8.70 | Q80: 34.10 | R80: 9.10 | S80: 0.52
B81: ИТОГО | F81: 32 | H81: =SUM(H76:H80) -> 14.68 | I81: =SUM(I76:I80) -> 13.39 | J81: 129.62 | K81: 718.40 | L81: 0.28 | M81: 15.49 | N81: 43.12 | O81: 3.42 | P81: 228.02 | Q81: 319.78 | R81: 101.97 | S81: 3.78
B84: 3-ий день (среда)
A86: 114/2017 | B86: Суп - лапша домашняя с картофелем | G86: 250 | H86: 4.76 | I86: 3.83 | J86: 11.7 | K86: 127.32 | L86: 0.06 | M86: 5.055 | N86: 14.7 | O86: 2.65 | P86: 30.92 | Q86: 61.34 | R86: 14.217 | S86: 0.82
A87: №181/2017 | B87: Каша пшенная молочная с маслом сливочным на полив | G87: 150/5 | H87: 5.00 | I87: 8.20 | J87: 30.30 | K87: 215.00 | L87: 0.07 | M87: 0.25 | N87: 36.30 | O87: 0.63 | P87: 140.56 | Q87: 117.50 | R87: 20.60 | S87: 0.47
A88: 376/2017 | B88: Чай с шиповником и сахаром | G88: 200/10/15 | H88: 4.90 | I88: 5.00 | J88: 32.50 | K88: 190.00 | L88: 0.02 | M88: 0.15 | N88: 9.60 | O88: 0.09 | P88: 107.30 | Q88: 95.20 | R88: 26.00 | S88: 0.84
A89: ТТК, акт 15 | B89: Хлеб сельский / хлеб белый | G89: 20/20 | H89: 2.90 | I89: 0.80 | J89: 17.00 | K89: 90.00 | L89: 0.04 | O89: 0.40 | P89: 8.70 | Q89: 34.10 | R89: 9.10 | S89: 0.52
B90: ИТОГО | F90: 32 | H90: =SUM(H86:H89) -> 17.56 | I90: =SUM(I86:I89) -> 17.83 | J90: 91.50 | K90: 622.32 | L90: 0.19 | M90: 5.46 | N90: 60.60 | O90: 3.77 | P90: 287.48 | Q90: 308.14 | R90: 69.92 | S90: 2.65
B93: 4-ый день (четверг)
A95: 88/2017 | B95: Щи из свежей капусты с картофелем, со сметаной | G95: 250/10 | H95: 15 | I95: 1.8 | J95: 4.8 | K95: 6 | L95: 73 | M95: 0.01 | N95: 8.04 | O95: 23.4 | P95: 0.15 | Q95: 30.4 | R95: 26.2 | S95: 10.4
A96: 173/2017 | B96: Каша геркулесовая молочная с маслом сливочным на полив | G96: 150/5 | H96: 6.19 | I96: 7.12 | J96: 28.18 | K96: 203 | L96: 0.16 | M96: 0.23 | N96: 35 | O96: 0.248 | P96: 140.42 | Q96: 179.3 | R96: 48.1 | S96: 1.283
A97: № 376/2017 | B97: Чай черный с сахаром | G97: 200/15 | H97: 0.46 | I97: 0.02 | J97: 16.25 | K97: 67.00 | L97: 0.00 | M97: 0.00 | N97: 0.00 | O97: 0.00 | P97: 0.40 | Q97: 0.00 | R97: 0.00 | S97: 0.40
A98: ТТК, акт 15 | B98: Хлеб сельский / хлеб белый | G98: 20/20 | H98: 2.90 | I98: 0.80 | J98: 17.00 | K98: 90.00 | L98: 0.04 | O98: 0.40 | P98: 8.70 | Q98: 34.10 | R98: 9.10 | S98: 0.52
B99: ИТОГО | F99: 32 | H99: =SUM(H95:H98) -> 24.55 | I99: =SUM(I95:I98) -> 9.74 | J99: 66.23 | K99: 365.50 | L99: 73.20 | M99: 0.24 | N99: 43.04 | O99: 24.05 | P99: 149.67 | Q99: 243.80 | R99: 83.40 | S99: 12.60
B103: 5-ый день (пятница)
A105: 95/2017 | B105: Рассольник домашний со сметаной | G105: 250/5 | H105: 2.35 | I105: 6.59 | J105: 13.05 | K105: 130.7 | L105: 0.1 | M105: 13.17 | N105: 10 | O105: 2.41 | P105: 48.55 | Q105: 71.93 | R105: 28.98 | S105: 1.1
A106: 174/2017 | B106: Каша кукурузная молочная с маслом сливочным на полив | G106: 150/5 | H106: 6.28 | I106: 7.55 | J106: 25.59 | K106: 195.00 | L106: 0.15 | M106: 0.25 | N106: 37.70 | O106: 0.68 | P106: 156.02 | Q106: 193.50 | R106: 55.70 | S106: 1.31
A107: № 376/2017 | B107: Чай черный с сахаром, с яблоком | G107: 200/15/10 | H107: 0.46 | I107: 0.02 | J107: 16.25 | K107: 67.00 | L107: 0.00 | M107: 0.00 | N107: 0.00 | O107: 0.00 | P107: 0.40 | Q107: 0.00 | R107: 0.00 | S107: 0.40
A108: ТТК, акт 15 | B108: Хлеб сельский / хлеб белый | G108: 20/20 | H108: 2.90 | I108: 0.80 | J108: 17.00 | K108: 90.00 | L108: 0.04 | O108: 0.40 | P108: 8.70 | Q108: 34.10 | R108: 9.10 | S108: 0.52
B109: ИТОГО | F109: 32 | H109: =SUM(H105:H108) -> 11.99 | I109: =SUM(I105:I108) -> 14.96 | J109: 71.89 | K109: 482.70 | L109: 0.29 | M109: 13.42 | N109: 47.70 | O109: 3.49 | P109: 213.67 | Q109: 299.53 | R109: 93.78 | S109: 3.33
B112: 6-ой день (суббота)
A114: 116/2017 | B114: Суп с крупой с томатом | G114: 250 | H114: 4.95 | I114: 4.41 | J114: 21.89 | K114: 105.96 | L114: 0.01 | M114: 1.48 | O114: 2.33 | P114: 23.88 | Q114: 30.2 | R114: 7.48 | S114: 0.58
A115: № 98/2017 | B115: Омлет натуральный с маслом сливочным | G115: 150/5 | H115: 15.16 | I115: 19.08 | J115: 2.73 | K115: 243.38 | L115: 0.07 | M115: 0.25 | N115: 36.30 | O115: 0.63 | P115: 140.56 | Q115: 117.50 | R115: 20.60 | S115: 0.47
A116: 388/2017 | B116: Напиток из шиповника | G116: 200 | H116: 0.68 | I116: 0.28 | J116: 20.76 | K116: 88.20 | M116: 1.00 | O116: 0.76 | P116: 21.34 | Q116: 3.44 | R116: 3.44 | S116: 0.63
A117: ТТК, акт 15 | B117: Хлеб сельский / хлеб белый | G117: 20/20 | H117: 2.90 | I117: 0.80 | J117: 17.00 | K117: 90.00 | L117: 0.04 | O117: 0.40 | P117: 8.70 | Q117: 34.10 | R117: 9.10 | S117: 0.52
B118: ИТОГО | F118: 32 | H118: =SUM(H114:H117) -> 23.69 | I118: =SUM(I114:I117) -> 24.57 | J118: 62.38 | K118: 527.54 | L118: 0.12 | M118: 2.73 | N118: 36.30 | O118: 4.12 | P118: 194.48 | Q118: 185.24 | R118: 40.62 | S118: 2.21
B121: Итого за 6 дней | H121: =#REF!+#REF!+#REF!+#REF!+#REF!+H72 ->  | I121: =#REF!+#REF!+#REF!+#REF!+#REF!+I72 ->  | J121: =#REF!+#REF!+#REF!+#REF!+#REF!+J72 ->  | K121: =#REF!+#REF!+#REF!+#REF!+#REF!+K72 ->  | L121: =#REF!+#REF!+#REF!+#REF!+#REF!+L72 ->  | M121: =#REF!+#REF!+#REF!+#REF!+#REF!+M72 ->  | N121: =#REF!+#REF!+#REF!+#REF!+#REF!+N72 ->  | O121: =#REF!+#REF!+#REF!+#REF!+#REF!+O72 ->  | P121: =#REF!+#REF!+#REF!+#REF!+#REF!+P72 ->  | Q121: =#REF!+#REF!+#REF!+#REF!+#REF!+Q72 ->  | R121: =#REF!+#REF!+#REF!+#REF!+#REF!+R72 ->  | S121: =#REF!+#REF!+#REF!+#REF!+#REF!+S72 -> 
B123: Итого за 12 дней | H123: =H121+H57 -> 

Sheet Лист1
